bitfinex/quotes_ETHUSD_20250217
["timestamp","ask_amount","ask_price","bid_price","bid_amount"]
[1739785760135,0.015,2735.9,2735.4,7.31137]
[1739785760341,0.015,2735.9,2735.6,3.65541]
[1739785761037,0.015,2736.0,2735.4,3.6557]
[1739785761244,0.015,2735.8,2735.4,3.6557]
[1739785761449,4.47844,2736.1,2735.3,0.8016]
[1739785761651,0.8236,2736.1,2735.7,3.65536]
[1739785761846,0.015,2736.0,2735.7,3.65536]
[1739785762178,0.015,2735.7,2735.2,3.65593]
[1739785762872,3.6551,2735.9,2735.2,3.65593]
[1739785762873,3.6703,2735.8,2735.2,3.65593]
[1739785763382,0.015,2735.8,2735.2,3.65593]
[1739785763583,0.015,2735.3,2734.9,3.65636]
[1739785763936,0.015,2735.3,2735.0,3.65622]
[1739785764132,0.015,2735.5,2735.1,3.65616]
[1739785764377,0.015,2735.5,2735.3,3.65588]
[1739785764560,0.015,2735.5,2735.4,3.65577]
[1739785764880,0.0075,2735.5,2735.2,3.65603]
[1739785765979,0.0075,2735.5,2735.0,3.65624]
[1739785765980,0.0075,2735.4,2735.0,3.65623]
[1739785766139,0.0075,2735.4,2735.0,7.31246]
[1739785766335,0.0075,2735.4,2735.1,3.65615]
[1739785766542,0.0075,2735.5,2735.2,3.65599]
[1739785767452,0.015,2735.6,2735.0,3.65623]
[1739785767649,8.12056,2735.7,2735.6,0.1338]
[1739785768972,4.46506,2735.7,2735.6,0.1338]
[1739785769647,4.48006,2735.7,2735.6,0.1338]
[1739785769849,5.29359,2735.7,2735.6,0.1338]
[1739785770780,5.29359,2735.7,2735.6,0.20742626]
[1739785771342,5.29359,2735.7,2735.6,0.1338]
[1739785772179,5.29359,2735.7,2735.6,0.20742626]
[1739785772885,4.48006,2735.7,2735.6,0.20742626]
[1739785773381,4.48006,2735.7,2735.6,0.1338]
[1739785773568,4.44686,2735.7,2735.6,0.1338]
[1739785775980,16.60086,2735.7,2735.6,0.1338]
[1739785777191,7.44686,2735.7,2735.6,0.1338]
[1739785778347,9.18462261,2735.7,2735.6,0.1338]
[1739785779385,8.90162261,2735.7,2735.6,0.1338]
[1739785779570,9.18462261,2735.7,2735.6,0.1338]
[1739785779771,18.33862261,2735.7,2735.6,0.1338]
[1739785779976,9.18462261,2735.7,2735.6,0.1338]
[1739785780286,9.18462261,2735.7,2735.6,0.20821511]
[1739785780586,9.18462261,2735.7,2735.6,0.1338]
[1739785780889,9.18462261,2735.7,2735.6,0.20821511]
[1739785781050,9.18462261,2735.7,2735.6,0.1338]
[1739785781992,18.33862261,2735.7,2735.6,0.1338]
[1739785782799,18.33862261,2735.7,2733.6,0.282]
[1739785782800,0.015,2734.6,2734.0,3.65755]
[1739785783002,3.65706,2734.5,2733.9,3.65769]
[1739785783196,0.015,2734.4,2734.1,0.06917393]
[1739785783406,0.015,2734.4,2733.9,3.65769]
[1739785783696,0.015,2734.4,2734.2,0.06917393]
[1739785783989,3.67214,2734.4,2734.3,0.06917393]
[1739785784349,3.67214,2734.4,2733.7,4.42556]
[1739785784350,0.015,2734.1,2733.7,0.7676]
[1739785784786,0.015,2734.1,2733.7,4.210175]
[1739785785090,0.015,2734.1,2733.8,3.65782]
[1739785785489,3.65743,2734.2,2733.7,7.868195]
[1739785785679,0.015,2734.1,2733.9,0.06917393]
[1739785785874,0.015,2734.1,2733.7,4.868215]
[1739785786251,7.11739607,2734.6,2733.7,0.7676]
[1739785786457,0.015,2734.0,2733.8,0.06917393]
[1739785786757,3.66527,2733.9,2733.8,0.06917393]
[1739785786982,3.67277,2733.9,2733.8,0.06917393]
[1739785787187,0.015,2733.5,2733.2,0.82869536]
[1739785787582,0.015,2733.5,2733.3,0.06967969]
[1739785787965,0.015,2733.5,2733.2,0.82869536]
[1739785788170,0.015,2733.5,2733.4,0.06967969]
[1739785788357,0.015,2733.5,2733.2,4.09117662]
[1739785788559,0.015,2733.5,2733.4,0.06967969]
[1739785788779,0.015,2733.5,2733.2,4.09126662]
[1739785788956,3.94088,2733.9,2733.4,0.06967969]
[1739785789158,0.283,2733.9,2733.3,3.6585]
[1739785789360,0.015,2733.8,2733.5,0.06967969]
[1739785789558,0.015,2733.8,2733.3,3.6585]
[1739785789797,0.8273,2734.1,2733.6,0.85457969]
[1739785790099,0.015,2734.1,2733.7,3.65794]
[1739785790314,0.015,2734.1,2733.7,0.07004001]
[1739785790315,0.015,2733.9,2733.7,0.07004001]
[1739785790606,0.015,2733.9,2733.5,4.44312]
[1739785790964,0.015,2733.9,2733.7,3.658]
[1739785791160,0.015,2733.9,2733.8,3.65791]
[1739785791367,0.015,2733.9,2733.7,3.658]
[1739785791602,0.015,2733.9,2733.8,0.07002467]
[1739785791906,0.015,2733.9,2733.8,3.72793467]
[1739785792114,1.0397,2734.6,2734.0,3.65757]
[1739785792325,4.69661,2734.6,2734.0,3.65757]
[1739785792458,0.015,2734.3,2733.8,3.65779]
[1739785792697,3.67225,2734.3,2733.8,3.65779]
[1739785792862,3.65743,2734.2,2733.9,0.07002467]
[1739785793097,0.367243,2734.2,2733.9,3.65776]
[1739785793312,0.367243,2734.2,2733.5,0.7849]
[1739785793313,1.0397,2734.6,2734.0,0.07002467]
[1739785793459,1.0397,2734.6,2734.1,3.65742]
[1739785793812,0.015,2734.5,2734.2,3.72738467]
[1739785794111,3.67197,2734.5,2734.2,0.07002467]
[1739785794310,3.67224,2734.3,2733.8,4.47875]
[1739785794609,3.67224,2734.3,2733.9,0.07069899]
[1739785794813,4.405161,2734.3,2733.9,0.07069899]
[1739785795500,4.405161,2734.3,2733.7,3.65803]
[1739785795795,3.67224,2734.3,2733.8,3.72857899]
[1739785796094,0.015,2734.3,2733.9,3.65777]
[1739785796510,0.015,2734.3,2734.0,0.07069899]
[1739785796810,3.67225,2734.3,2734.0,0.07069899]
[1739785797112,4.43348,2734.3,2733.6,4.4181]
[1739785797320,0.015,2734.1,2733.7,3.72872899]
[1739785797488,0.015,2734.1,2733.7,0.07069899]
[1739785797817,0.015,2734.1,2733.8,7.31561]
[1739785797983,0.015,2734.1,2733.8,3.65778]
[1739785798305,0.015,2734.1,2733.9,3.65775]
[1739785798514,0.015,2734.1,2733.9,0.07069899]
[1739785798672,0.015,2734.1,2733.9,3.72844899]
[1739785798871,0.015,2734.3,2733.9,3.72844899]
[1739785799705,3.94005,2734.5,2734.0,3.65761]
[1739785799873,1.46281761,2734.5,2734.2,3.65737]
[1739785800084,0.015,2734.4,2734.3,0.07069899]
[1739785800299,0.015,2734.4,2733.9,3.65769]
[1739785800613,3.67211,2734.4,2734.0,0.07040767]
[1739785800820,3.65724,2734.3,2734.0,0.07040767]
[1739785801116,0.015,2734.1,2733.7,3.65796]
[1739785801421,0.015,2734.3,2733.9,3.65776]
[1739785801985,0.015,2734.3,2734.0,0.07040001]
[1739785802205,0.015,2734.1,2734.0,0.07040001]
[1739785802700,4.128171,2734.4,2734.0,0.07040001]
[1739785802701,0.015,2734.3,2734.0,0.07040001]
[1739785803008,0.015,2734.3,2734.1,0.07040001]
[1739785803009,0.4293171,2734.3,2734.1,0.07040001]
[1739785803537,0.015,2734.3,2733.9,3.65777]
[1739785803729,0.015,2734.3,2734.2,0.07040001]
[1739785804030,0.015,2734.3,2733.9,7.31547]
[1739785804031,0.015,2734.3,2734.0,3.65764]
[1739785804237,0.015,2734.3,2734.2,0.07040001]
[1739785804394,0.015,2734.3,2734.2,3.65737]
[1739785804594,0.015,2734.3,2734.2,0.07040001]
[1739785805135,0.015,2734.3,2734.2,0.07064532]
[1739785805508,0.015,2734.3,2733.8,3.65781]
[1739785805711,0.015,2734.3,2733.9,3.72833532]
[1739785806023,0.015,2734.3,2734.0,3.65763]
[1739785806595,0.015,2734.3,2734.1,0.07064532]
[1739785807196,3.65737,2734.2,2734.1,0.07064532]
[1739785807394,3.65737,2734.2,2733.6,4.41804]
[1739785807395,3.65737,2734.2,2733.7,3.65796]
[1739785807630,4.024457,2734.3,2733.3,4.44768]
[1739785807631,0.015,2733.7,2733.3,4.44768]
[1739785808235,3.35798,2733.8,2733.2,0.43256662]
[1739785808236,0.015,2733.5,2733.2,0.43256662]
[1739785808439,4.49571,2733.5,2732.9,4.45279]
[1739785808593,5.31111,2733.5,2732.9,4.45279]
[1739785808799,1.6528,2733.5,2732.9,4.45279]
[1739785808999,5.31113,2733.5,2732.9,8.11181]
[1739785809201,1.6528,2733.5,2732.9,0.7938]
[1739785809402,0.281,2733.8,2733.3,3.65851]
[1739785809596,0.281,2733.8,2733.4,0.8142]
[1739785809843,0.0075,2733.5,2733.1,4.47293]
[1739785810136,0.0075,2733.5,2733.4,3.65844]
[1739785810319,0.0075,2733.7,2733.4,3.65844]
[1739785810521,0.0075,2733.7,2733.1,0.8142]
[1739785810845,0.015,2733.5,2733.2,0.27099185]
[1739785811340,0.015,2733.6,2733.2,0.27099185]
[1739785811549,3.67317,2733.6,2733.2,0.27099185]
[1739785811715,0.015,2733.4,2733.2,0.27099185]
[1739785813544,0.015,2733.4,2733.0,4.07837605]
[1739785813844,4.040812,2733.4,2733.0,0.41943605]
[1739785814203,0.382342,2733.4,2733.0,0.41943605]
[1739785814406,3.65859,2733.3,2733.0,0.41943605]
[1739785815446,3.72652607,2733.8,2733.0,0.41943605]
[1739785815447,4.42757,2733.7,2733.1,3.65873]
[1739785815605,4.42757,2733.7,2733.1,4.56097532]
[1739785815804,0.015,2733.6,2733.2,3.65863]
[1739785816018,0.015,2733.6,2733.3,3.65851]
[1739785816214,0.015,2733.6,2733.3,3.73012683]
[1739785816633,0.015,2733.6,2733.3,0.07162683]
[1739785816956,0.778,2733.4,2733.0,0.1484442]
[1739785817114,4.45156,2733.4,2733.0,0.1484442]
[1739785817323,3.6587,2733.3,2733.0,0.1484442]
[1739785817542,4.45156,2733.4,2733.0,0.1484442]
[1739785817741,4.44564,2733.1,2733.0,0.1484442]
[1739785817928,14.76362861,2733.1,2733.0,0.1484442]
[1739785818459,17.94748907,2733.1,2733.0,0.1484442]
[1739785818754,17.76362861,2733.1,2733.0,0.1484442]
[1739785818916,18.04462861,2733.1,2733.0,0.1484442]
[1739785819127,24.67654198,2733.1,2733.0,0.1484442]
[1739785821750,4.48975,2732.2,2732.1,0.005]
[1739785821934,20.83225107,2732.2,2732.1,0.005]
[1739785822728,17.386725,2732.2,2732.1,0.005]
[1739785823728,7.938725,2732.2,2732.1,0.005]
[1739785823941,8.220725,2732.2,2732.1,0.06935632]
[1739785824479,5.220725,2732.2,2732.1,0.06935632]
[1739785824680,3.95705,2732.2,2732.1,0.06935632]
[1739785825174,0.015,2732.2,2732.1,0.06935632]
[1739785825656,0.0075,2732.2,2732.1,0.06935632]
[1739785826764,3.65904,2733.0,2732.2,3.66003]
[1739785826978,0.015,2732.8,2732.2,3.66003]
[1739785827180,0.015,2732.8,2732.5,3.65964]
[1739785827345,0.015,2732.8,2732.3,0.06205788]
[1739785827747,0.015,2732.8,2732.3,3.72195788]
[1739785827943,0.015,2732.8,2732.3,4.46015067]
[1739785828166,0.015,2732.8,2732.5,3.65965]
[1739785828366,0.015,2732.8,2732.3,4.46015067]
[1739785828675,0.015,2732.8,2732.6,0.06280974]
[1739785828875,0.015,2732.8,2732.3,4.39801279]
[1739785829190,0.015,2732.8,2732.3,3.6598]
[1739785829478,0.015,2732.8,2732.4,0.06280974]
[1739785829679,0.015,2732.8,2732.4,0.87550974]
[1739785830306,0.015,2732.8,2732.5,3.65956]
[1739785830467,0.015,2732.8,2732.7,3.65938]
[1739785830980,0.282,2733.4,2732.9,7.31814]
[1739785831129,3.65866,2733.3,2732.8,0.7962]
[1739785831338,0.015,2733.2,2732.8,0.7962]
[1739785831570,0.015,2733.2,2732.9,0.06280974]
[1739785832079,3.67377,2733.2,2732.9,0.06280974]
[1739785832265,0.015,2733.0,2732.9,0.06280974]
[1739785832465,0.015,2733.0,2732.9,0.11980695]
[1739785832645,0.015,2732.9,2732.5,0.7753]
[1739785832847,3.67414,2732.9,2732.5,0.7753]
[1739785833094,0.015,2732.9,2732.3,0.8056]
[1739785833229,0.015,2732.9,2732.4,3.65977]
[1739785833431,0.015,2732.9,2732.5,3.65955]
[1739785833832,0.0075,2732.9,2732.5,3.65955]
[1739785834082,3.65877,2733.2,2732.5,4.472042]
[1739785834270,3.65877,2733.2,2732.6,0.11980695]
[1739785834470,0.015,2733.0,2732.6,0.11980695]
[1739785837702,0.37488,2733.0,2732.7,0.11980695]
[1739785837841,0.37488,2733.0,2732.6,3.65938]
[1739785837842,0.0075,2733.0,2732.6,3.65938]
[1739785838041,0.7515,2733.4,2732.4,3.65973]
[1739785838042,0.015,2733.3,2732.8,0.11980695]
[1739785838268,0.015,2733.3,2732.3,0.8056]
[1739785838269,0.015,2732.6,2732.3,0.8056]
[1739785838601,3.6595,2732.7,2731.7,4.39604899]
[1739785838602,0.0075,2732.0,2731.7,0.7735]
[1739785839093,3.66786,2732.0,2731.5,3.66094]
[1739785839296,0.0075,2732.1,2731.6,3.66076]
[1739785839441,3.65999,2732.3,2731.7,3.66061]
[1739785839990,0.0075,2732.3,2731.8,0.8316]
[1739785840142,0.0075,2732.3,2731.8,4.49211]
[1739785840343,0.015,2732.6,2732.0,3.66024]
[1739785840553,0.015,2732.4,2732.0,3.66024]
[1739785841159,0.0075,2732.5,2732.0,3.66024]
[1739785841358,0.0075,2732.5,2732.1,3.66009]
[1739785841595,0.015,2732.6,2732.1,3.66009]
[1739785841793,0.015,2732.6,2732.2,0.8102]
[1739785841975,0.0075,2732.6,2732.3,3.65991]
[1739785842427,0.0075,2732.7,2732.2,0.8102]
[1739785842625,0.0075,2732.7,2732.2,4.47024]
[1739785842833,0.015,2732.7,2732.2,4.47024]
[1739785844129,0.015,2732.8,2732.4,3.65971]
[1739785844433,0.015,2732.8,2732.3,3.6599]
[1739785844780,3.67426,2732.8,2732.3,3.6599]
[1739785845006,3.65939,2732.7,2732.2,0.8102]
[1739785845326,0.7816,2733.0,2731.9,4.42574]
[1739785845327,0.015,2732.5,2731.9,4.42574]
[1739785845625,0.015,2732.9,2732.0,0.12000648]
[1739785845794,0.015,2732.7,2732.0,0.12000648]
[1739785845980,0.015,2732.7,2732.0,0.39147823]
[1739785846186,0.0075,2732.4,2732.0,0.39147823]
[1739785846529,0.015,2732.4,2732.0,0.39147823]
[1739785846710,3.65992,2732.3,2732.0,0.39147823]
[1739785847093,0.015,2732.4,2732.0,4.05167823]
[1739785847312,0.0075,2732.5,2732.0,4.05167823]
[1739785847508,0.0075,2732.5,2732.1,3.66013]
[1739785847712,0.0075,2732.5,2732.0,4.05167823]
[1739785848034,0.0075,2732.5,2732.0,3.93167175]
[1739785848181,0.0075,2732.6,2732.2,3.65997]
[1739785848519,4.37881362,2733.2,2732.4,3.65977]
[1739785848520,3.65921,2732.9,2732.4,3.65977]
[1739785848723,3.65927,2732.8,2732.3,0.7881]
[1739785848931,0.015,2732.7,2732.5,0.11999113]
[1739785849228,3.94001,2733.0,2732.6,0.11999113]
[1739785849399,0.015,2733.1,2732.6,0.11999113]
[1739785849600,0.015,2732.9,2732.5,3.65956]
[1739785849799,0.015,2732.9,2732.7,0.11999113]
[1739785850113,0.0075,2732.9,2732.5,3.65956]
[1739785850316,0.0075,2732.9,2732.8,0.11999113]
[1739785850501,0.0075,2732.9,2732.4,3.65978]
[1739785850697,0.0075,2732.9,2732.8,0.11999113]
[1739785850930,0.0075,2732.9,2731.9,7.10593607]
[1739785850931,0.015,2732.5,2732.0,3.66031]
[1739785851630,0.015,2732.2,2731.8,4.46425]
[1739785851836,0.015,2732.2,2731.8,8.12476]
[1739785852387,0.015,2732.2,2731.8,0.8037]
[1739785852586,0.015,2732.0,2731.9,0.27181457]
[1739785852927,17.50065807,2732.0,2731.9,0.27181457]
[1739785853232,17.50065807,2732.0,2731.9,0.06795365]
[1739785854040,4.889132,2732.0,2731.9,0.06795365]
[1739785854183,4.879132,2732.0,2731.9,0.06795365]
[1739785854392,3.6605,2731.9,2731.4,0.015]
[1739785854734,3.44552607,2732.4,2731.4,0.015]
[1739785855038,3.66031,2732.1,2731.5,4.4186]
[1739785855185,3.66032,2732.0,2731.5,0.7577]
[1739785856024,3.66045,2731.9,2731.5,0.7577]
[1739785856403,0.015,2731.8,2731.3,3.66125]
[1739785857343,0.015,2731.8,2731.5,3.66098]
[1739785857523,0.015,2731.8,2731.3,3.66125]
[1739785857709,0.015,2731.8,2731.3,7.32241]
[1739785857911,0.015,2731.8,2731.3,3.66116]
[1739785858091,0.015,2731.8,2730.6,3.44552607]
[1739785858092,0.015,2731.4,2731.0,3.66157]
[1739785858287,0.015,2731.6,2730.8,3.66191]
[1739785858492,0.015,2731.4,2730.9,3.66171]
[1739785858694,0.015,2731.4,2730.8,3.66191]
[1739785858695,3.67614,2731.4,2730.8,3.66191]
[1739785859004,3.67614,2731.4,2730.8,3.66185]
[1739785859337,0.015,2731.4,2731.0,3.66164]
[1739785859938,3.6762,2731.4,2730.8,3.66185]
[1739785860119,4.409928,2731.4,2730.8,3.66185]
[1739785860498,0.015,2731.2,2730.6,4.46259]
[1739785860653,0.015,2731.2,2730.9,0.10406195]
[1739785860855,0.015,2731.2,2730.8,3.66185]
[1739785861024,0.015,2731.2,2731.0,0.10406195]
[1739785861228,0.015,2731.2,2730.9,3.66179]
[1739785861546,0.6482,2731.3,2730.8,3.66183]
[1739785861749,0.6482,2731.3,2730.9,3.76576195]
[1739785861965,0.6482,2731.3,2730.9,0.10406195]
[1739785862260,7.10606607,2731.9,2731.1,3.66145]
[1739785862563,0.78257184,2731.8,2730.6,0.8005]
[1739785862704,3.66027,2732.1,2731.2,0.89596195]
[1739785862910,3.66046,2731.9,2731.4,3.66105]
[1739785863153,3.66046,2731.9,2731.3,0.10406195]
[1739785863336,3.66046,2731.9,2731.2,0.7919]
[1739785863337,3.72652607,2732.0,2731.5,0.10558257]
[1739785863504,3.66105,2731.5,2730.9,4.45362]
[1739785863703,0.015,2731.4,2731.0,3.66156]
[1739785863912,4.03318261,2731.9,2731.3,3.66117]
[1739785864110,7.69372261,2731.9,2731.3,3.66117]
[1739785864354,0.015,2731.8,2731.4,3.6611]
[1739785864518,0.0075,2731.8,2731.5,0.8264]
[1739785864723,3.66027,2732.1,2731.5,4.4873]
[1739785865078,3.66053,2731.9,2731.6,0.10551342]
[1739785865252,3.66065,2731.8,2731.6,0.10551342]
[1739785865569,3.67527,2732.1,2731.7,0.10551342]
[1739785865779,0.015,2732.1,2731.7,0.10551342]
[1739785866075,0.015,2731.9,2731.4,3.66111]
[1739785866374,0.015,2732.1,2731.8,0.10551342]
[1739785866672,3.66045,2731.9,2731.4,3.66104]
[1739785867040,3.66045,2731.9,2731.5,3.66098]
[1739785867241,3.66045,2731.9,2731.2,4.4813]
[1739785867551,0.015,2731.6,2730.8,3.66186]
[1739785867753,0.015,2731.6,2731.3,3.66119]
[1739785868051,7.32108,2731.9,2731.3,3.66119]
[1739785868052,3.6605,2731.9,2731.3,3.66119]
[1739785868418,3.66065,2731.8,2731.1,3.66142]
[1739785868653,0.015,2731.6,2731.0,3.66166]
[1739785868839,1.0936,2732.0,2731.5,3.66091]
[1739785869034,0.015,2731.9,2731.5,3.66091]
[1739785869666,0.7898,2732.3,2731.5,0.7702]
[1739785869865,5.41673195,2732.3,2731.8,3.66054]
[1739785870070,0.015,2732.2,2731.8,3.66054]
[1739785870490,0.015,2732.2,2731.6,3.66085]
[1739785870674,3.66025,2732.1,2731.5,0.7702]
[1739785870972,0.015,2732.2,2731.5,0.7702]
[1739785870973,3.66047,2731.9,2731.5,0.7702]
[1739785871281,3.66064,2731.8,2731.2,7.43148]
[1739785871459,0.0075,2731.5,2730.9,0.7618]
[1739785871660,3.66068,2731.8,2731.3,3.66125]
[1739785871968,3.66087,2731.6,2731.1,3.66145]
[1739785872176,3.66087,2731.6,2731.0,3.66163]
[1739785872356,3.66087,2731.6,2730.9,4.42359]
[1739785872357,0.015,2731.5,2730.9,4.42359]
[1739785872674,0.015,2731.3,2730.9,0.7618]
[1739785873180,0.367587,2731.6,2730.9,4.42352]
[1739785873330,0.015,2731.2,2730.7,3.66198]
[1739785874044,3.67645,2731.2,2730.8,0.27170048]
[1739785874248,0.015,2730.9,2730.8,0.27170048]
[1739785875374,0.015,2731.0,2730.8,0.27170048]
[1739785875592,0.015,2731.0,2730.9,0.10534442]
[1739785875795,0.015,2731.0,2730.6,3.93381048]
[1739785876109,0.015,2731.0,2730.7,0.10534442]
[1739785876399,0.8123,2731.1,2730.8,3.66187]
[1739785876547,0.281,2731.4,2730.8,3.66187]
[1739785876548,0.281,2731.4,2730.8,4.43267]
[1739785876756,0.281,2731.4,2731.0,3.66157]
[1739785877199,0.0075,2731.3,2731.1,3.66148]
[1739785877362,0.0075,2731.6,2731.3,3.66118]
[1739785877566,1.1076,2731.8,2731.4,3.66104]
[1739785877879,4.76828,2731.8,2731.4,0.10567477]
[1739785878062,3.66085,2731.6,2731.4,0.10567477]
[1739785878268,3.67599,2731.5,2731.4,0.10567477]
[1739785878484,3.67599,2731.5,2731.0,4.45838]
[1739785878485,0.015,2731.5,2731.0,4.45838]
[1739785878689,0.015,2731.5,2731.4,0.10567477]
[1739785878891,0.015,2731.5,2730.7,0.40391549]
[1739785878892,3.66142,2731.2,2730.7,0.7761]
[1739785879053,3.66142,2731.2,2730.2,0.1584442]
[1739785879054,0.8033,2731.1,2730.2,0.1584442]
[1739785879286,0.015,2730.6,2730.2,3.8210842]
[1739785879494,0.281,2731.0,2730.4,3.66244]
[1739785879685,0.755588,2731.0,2730.2,3.8211242]
[1739785879936,3.66206,2730.7,2730.2,0.4306148]
[1739785880137,3.67687,2730.9,2730.3,3.6625]
[1739785880339,0.015,2730.6,2730.2,4.0932748]
[1739785880999,3.66233,2730.5,2730.2,0.4306148]
[1739785881182,0.7755,2730.6,2730.3,0.2721706]
[1739785881386,3.67746,2730.4,2730.3,0.2721706]
[1739785881590,5.278676,2730.4,2730.3,0.2721706]
[1739785882052,14.450676,2730.4,2730.3,0.2721706]
[1739785882532,8.80115258,2730.3,2730.2,0.1584442]
[1739785883199,11.80115258,2730.3,2730.2,0.1584442]
[1739785883654,12.35115258,2730.3,2730.2,0.1584442]
[1739785883945,15.51709844,2730.3,2730.2,0.1584442]
[1739785884086,15.79809844,2730.3,2730.2,0.1584442]
[1739785884294,25.09509844,2730.3,2730.2,4.2e-06]
[1739785884603,4.49852,2729.4,2728.6,4.42468]
[1739785884808,4.49852,2729.4,2728.7,0.08667539]
[1739785884809,0.281,2729.3,2728.7,0.08667539]
[1739785885010,0.281,2729.3,2729.0,3.66429]
[1739785885241,0.281,2729.3,2728.9,3.66444]
[1739785885409,0.015,2729.6,2729.2,3.66406]
[1739785885588,3.66383,2729.4,2728.8,3.66456]
[1739785885895,3.66381,2729.4,2728.9,0.08667539]
[1739785886086,4.426253,2729.4,2728.9,0.08667539]
[1739785886293,0.015,2729.3,2728.9,0.08667539]
[1739785886590,0.015,2729.2,2728.9,0.08667539]
[1739785886833,3.67881,2729.4,2728.9,0.08667539]
[1739785887039,3.67881,2729.4,2729.0,3.66433]
[1739785887040,0.015,2729.4,2729.0,3.66433]
[1739785887741,0.015,2729.4,2729.1,0.08667539]
[1739785887941,0.015,2729.4,2729.3,3.66394]
[1739785888142,0.015,2729.4,2729.1,3.75079539]
[1739785888342,0.015,2729.4,2729.1,3.66412]
[1739785888501,0.015,2729.4,2729.2,0.088264]
[1739785888701,0.015,2729.4,2729.0,3.66425]
[1739785888914,0.7992,2730.1,2729.3,0.088264]
[1739785889245,4.33385258,2730.5,2730.0,3.66297]
[1739785889246,0.282,2730.4,2730.0,3.66297]
[1739785889601,0.282,2730.4,2730.2,3.66264]
[1739785889804,0.015,2730.7,2729.9,0.7856]
[1739785890012,5.34,2731.0,2730.4,3.66238]
[1739785890323,0.778,2731.2,2729.9,0.7856]
[1739785890324,0.778,2731.2,2730.7,3.66205]
[1739785890644,0.015,2731.1,2730.6,0.7659]
[1739785890805,0.015,2730.8,2730.2,3.66264]
[1739785891149,3.67696,2730.8,2730.2,3.66264]
[1739785891950,3.67696,2730.8,2730.2,7.32527]
[1739785892145,0.778,2731.2,2730.7,3.66198]
[1739785892351,9.0011,2731.5,2730.9,3.66171]
[1739785892352,6.3812,2731.5,2730.9,3.66171]
[1739785892547,6.3812,2731.5,2730.6,0.7983]
[1739785892705,6.3812,2731.5,2731.0,3.66155]
[1739785892905,0.015,2731.3,2730.8,3.66182]
[1739785893649,0.0075,2731.3,2730.8,3.66182]
[1739785893856,0.0075,2731.4,2730.6,0.7983]
[1739785894036,0.283,2731.7,2731.1,3.66143]
[1739785894365,0.015,2731.6,2731.2,3.6613]
[1739785895743,0.015,2731.6,2731.1,3.66148]
[1739785896152,3.67588,2731.6,2731.1,3.66148]
[1739785896365,0.015,2731.6,2731.1,3.66148]
[1739785897063,0.015,2731.6,2731.2,3.66136]
[1739785897375,3.66109,2731.5,2730.8,3.66184]
[1739785897753,0.015,2731.6,2731.3,3.66125]
[1739785899082,0.015,2731.6,2731.3,3.66118]
[1739785899279,3.66032,2732.0,2731.4,3.66105]
[1739785899461,0.015,2731.7,2731.2,0.8045]
[1739785899686,3.66052,2731.9,2731.4,3.66112]
[1739785899984,3.66032,2732.0,2731.4,3.66112]
[1739785900141,0.015,2731.8,2731.3,3.66118]
[1739785900336,3.6756,2731.8,2731.3,3.66118]
[1739785901041,0.015,2731.8,2731.4,3.66111]
[1739785901278,0.015,2731.8,2731.3,3.66118]
[1739785901279,0.015,2731.8,2731.5,3.66096]
[1739785901580,3.66032,2732.0,2731.5,3.66096]
[1739785901764,0.8241,2732.1,2731.6,3.66075]
[1739785902154,0.015,2732.0,2731.6,3.66075]
[1739785902488,0.0075,2732.0,2731.9,3.66045]
[1739785902652,0.8207,2732.5,2731.8,3.66048]
[1739785902653,1.1017,2732.5,2731.8,3.66048]
[1739785902859,1.1017,2732.5,2731.3,0.446568]
[1739785902860,0.015,2732.4,2731.7,3.6607]
[1739785903058,0.015,2732.2,2731.7,3.6607]
[1739785903268,0.015,2732.2,2731.8,0.08660638]
[1739785903483,0.015,2732.2,2731.7,3.6607]
[1739785903786,0.015,2732.2,2731.9,0.08660638]
[1739785903953,0.015,2732.2,2731.7,3.66065]
[1739785904154,0.015,2732.2,2731.8,3.66049]
[1739785904373,0.015,2732.2,2731.8,0.87160638]
[1739785904561,0.015,2732.2,2731.8,4.53210638]
[1739785905186,3.67507,2732.2,2731.8,0.08660638]
[1739785905358,0.015,2732.0,2731.8,0.08660638]
[1739785905560,0.015,2732.0,2731.7,3.66071]
[1739785905775,0.015,2732.0,2731.9,0.08660638]
[1739785905962,3.66012,2732.2,2731.7,0.732149]
[1739785906164,3.66012,2732.2,2731.9,0.08660638]
[1739785906165,0.015,2732.1,2731.9,0.08660638]
[1739785906371,0.015,2732.1,2731.7,8.053439]
[1739785906565,0.015,2732.1,2732.0,0.08660638]
[1739785906769,4.1017,2732.5,2731.9,3.66045]
[1739785906995,3.65979,2732.4,2731.9,4.0997099]
[1739785907170,0.015,2732.3,2732.0,0.08660638]
[1739785907582,3.66013,2732.2,2732.0,0.08660638]
[1739785907779,0.015,2732.1,2732.0,0.08660638]
[1739785907970,0.0075,2732.1,2732.0,3.74692638]
[1739785908171,1.1017,2732.5,2731.9,3.66038]
[1739785908172,4.76141,2732.5,2731.9,3.66038]
[1739785908366,4.76141,2732.5,2732.0,3.66031]
[1739785908710,3.67485,2732.4,2732.1,0.08660638]
[1739785908912,3.67485,2732.4,2731.9,4.026398]
[1739785909206,0.0075,2732.2,2731.9,0.366038]
[1739785909932,0.0075,2732.2,2732.0,3.6603]
[1739785910214,0.0075,2732.4,2732.0,3.66031]
[1739785910423,0.8207,2732.5,2732.1,3.66018]
[1739785910570,0.8207,2732.5,2732.0,0.7686808]